fUST/lending_fUST_20240320
["ID","MTS","AMOUNT","RATE_DAILY","PERIOD"]
[319668283,1710913838688,-743.66895767,0.0002879,2]
[319668284,1710913838698,-112.31261889,0.0003089,10]
[319668285,1710913838708,-924.0674815,0.0003089,4]
[319668286,1710913838721,-154.86062544,0.0003089,2]
[319668287,1710913838731,-21459.64573828,0.0003089,4]
[319668288,1710913838741,-939.85122,0.00030972,2]
[319668289,1710913838752,-2161.89445686,0.00031006,4]
[319668290,1710913838761,-597.80075257,0.00031007,2]
[319668291,1710913838772,-166.666666,0.00032877,2]
[319668292,1710913838781,-154.86062544,0.00032897,14]
[319668293,1710913838791,-1000.0,0.00032899,2]
[319668294,1710913838800,-1451.86055883,0.000329,2]
[319668295,1710913838809,-241.37656486,0.00032997,4]
[319668296,1710913838819,-1112.68210575,0.00032997,4]
[319668297,1710913838829,-229.8946828,0.00032997,4]
[319668298,1710913838838,-836.60657019,0.00032997,4]
[319668299,1710913838848,-2111.18666894,0.00032997,4]
[319668300,1710913838858,-210.95504491,0.00032997,4]
[319668301,1710913838868,-1984.09026402,0.00032997,4]
[319668302,1710913838877,-269.83823354,0.00032997,4]
[319668303,1710913838887,-154.89810263,0.00032997,4]
[319668304,1710913838897,-179.3565902,0.00032997,4]
[319668305,1710913838913,-286.05844471,0.00032997,4]
[319668306,1710913838923,-212.37767704,0.00032997,4]
[319668307,1710913838933,-717.40972812,0.00032997,4]
[319668308,1710913838943,-447.79480711,0.00032997,4]
[319668309,1710913838954,-309.70578029,0.00032997,4]
[319668310,1710913838964,-1424.16479593,0.00032997,4]
[319668311,1710913838974,-335.84707754,0.00032997,4]
[319668312,1710913838985,-238.12714504,0.00032998,4]
[319668313,1710913838995,-160.62017136,0.00032998,10]
[319668314,1710913839004,-260.21421712,0.00032998,4]
[319668315,1710913839014,-398.28960739,0.00032998,7]
[319668316,1710913839024,-500.0,0.00032998,7]
[319668317,1710913839034,-164.76261523,0.00032998,7]
[319668318,1710913839043,-168.0,0.00032999,2]
[319668319,1710913839053,-47125.84439514,0.00032999,2]
[319668338,1710913840736,-236.64260937,0.00032998,4]
[319668339,1710913840746,-2823.15739063,0.00032999,2]
[319668379,1710913843685,-69651.85925179,0.00032999,2]
[319668380,1710913843699,-53409.13584134,0.00032999,2]
[319668436,1710913846682,-3089.4,0.00032999,2]
[319668438,1710913846807,-6149.24086807,0.00032999,2]
[319668440,1710913865217,2606.07461429,0.00019998,2]
[319668450,1710913958317,-154.86062544,0.00024993,2]
[319668451,1710913958340,-302.11520456,0.00024993,2]
[319668452,1710913958361,-154.86062544,0.00024994,2]
[319668453,1710913958383,-3504.14814187,0.00024994,2]
[319668454,1710913958404,-525.36827682,0.00024994,2]
[319668455,1710913958425,-313.49738956,0.00024994,2]
[319668456,1710913958445,-2745.78191176,0.00024994,2]
[319668457,1710913958468,-205.03177245,0.00024995,2]
[319668458,1710913958494,-382.11724394,0.00024995,2]
[319668459,1710913958516,-156.21736877,0.00024995,2]
[319668460,1710913958538,-154.86062544,0.00024996,2]
[319668461,1710913958560,-154.86062544,0.00024996,2]
[319668462,1710913958580,-154.86062544,0.00024997,2]
[319668463,1710913958600,-154.86062544,0.00024997,2]
[319668464,1710913958621,-3149.88760535,0.00024997,2]
[319668465,1710913958643,-3436.23958139,0.00024998,2]
[319668466,1710913958664,-154.86062544,0.00024999,2]
[319668467,1710913958691,-183.57112545,0.00024999,2]
[319668468,1710913980583,687.77022552,0.00019998,2]
[319668469,1710914013464,-534.46429513,0.00024992,2]
[319668470,1710914013487,-154.86062544,0.00024992,2]
[319668471,1710914013510,-325.68369138,0.00024992,2]
[319668472,1710914013535,-154.86062544,0.00024992,2]
[319668473,1710914013558,-616.97666661,0.00024992,2]
[319668474,1710914013581,-154.86062544,0.00024993,2]
[319668475,1710914013606,-1486.17282851,0.00024993,2]
[319668476,1710914013631,-8.27663613,0.00024999,2]
[319668477,1710914013656,-840.36951938,0.00024999,2]
[319668478,1710914013680,-249.49283272,0.00025,2]
[319668479,1710914014327,366.62315762,0.00024991,2]
[319668481,1710914241145,314.32022456,0.00024487,2]
[319668483,1710914522973,-154.86062544,0.00026803,2]
[319668484,1710914522996,-154.86062544,0.00026803,2]
[319668485,1710914523018,-205.03177245,0.00026803,2]
[319668486,1710914523043,-280.97506146,0.00026804,2]
[319668487,1710914523071,-154.86062544,0.00026805,2]
[319668488,1710914523094,-597.13322661,0.00026806,2]
[319668489,1710914523115,-783.57894867,0.00026807,2]
[319668490,1710914523140,-405.14954919,0.00026807,2]
[319668491,1710914523165,-382.11724394,0.00026808,2]
[319668492,1710914523187,-265.87314,0.0002681,2]
[319668556,1710914838677,303.84288374,0.00024742,2]
[319668557,1710914880355,5292.0940363,0.00021031,5]
[319668563,1710914883465,155.12664403,0.00024742,2]
[319668564,1710914887760,-597.13322661,0.0002655,2]
[319668565,1710914887781,-1043.3113712,0.0002655,2]
[319668566,1710914887802,-2745.78191176,0.00026551,2]
[319668567,1710914887823,-1609.06716003,0.00026552,2]
[319668568,1710914887848,-814.96064088,0.00026553,2]
[319668569,1710914887869,-179.3565902,0.00026553,2]
[319668570,1710914887891,-1300.05415471,0.00026554,2]
[319668571,1710914887912,-210.95504491,0.00026554,2]
[319668572,1710914887933,-325.68369138,0.00026554,2]
[319668573,1710914887954,-187.57184153,0.00026555,2]
[319668574,1710914887978,-154.98450155,0.00026556,2]
[319668575,1710914888000,-43662.13986524,0.00026809,2]
[319668576,1710914889161,154.93802479,0.00024742,2]
[319668577,1710914900565,687.77022552,0.00024742,2]
[319668585,1710914918519,687.77022552,0.00024742,2]
[319668586,1710914932214,12511.49623174,0.00024742,2]
[319668587,1710914932867,-3391.39929439,0.00024742,2]
[319668588,1710914932931,-69.2122305,0.00024742,2]
[319668589,1710914939078,-421.81911989,0.00024742,2]
[319668590,1710914939338,-8.60855347,0.00024742,2]
[319668594,1710914948756,-11897.96490825,0.00024742,2]
[319668595,1710914948944,-242.81561037,0.00024742,2]
[319668596,1710914953103,-154.86062544,0.00025581,2]
[319668597,1710914953225,-200.0,0.00025582,2]
[319668598,1710914953262,-1476.73003936,0.00025604,2]
[319668599,1710914953313,-1209.9544901,0.00025605,2]
[319668600,1710914953355,-1650.26412109,0.00026284,2]
[319668601,1710914953409,-4069.36663909,0.00026809,2]
[319668602,1710914953469,-10069.32254278,0.0002681,7]
[319668603,1710914953490,-19581.86444515,0.00026828,2]
[319668604,1710914957119,-5318.13555485,0.00026828,2]
[319668605,1710914957141,-1185.446132,0.00027167,2]
[319668606,1710914957165,-3395.21834659,0.00027551,2]
[319668607,1710914957185,-186.783191,0.00027741,2]
[319668608,1710914957206,-96.19660099,0.00028318,2]
[319668609,1710914957233,-153.80339901,0.00028318,2]
[319668610,1710914957255,-1689.436054,0.0003,10]
[319668611,1710914957275,-379.0,0.0003,2]
[319668612,1710914957298,-597.80075257,0.0003,2]
[319668613,1710914958099,300.0,0.0002774,2]
[319668970,1710915029946,495.77930512,0.00024728,2]
[319668971,1710915030164,495.77930512,0.00029728,2]
[319668999,1710915032664,-470.376,0.00030883,4]
[319669005,1710915032910,-931.38591908,0.00030883,4]
[319669006,1710915032919,-1094.95671519,0.00030883,4]
[319669007,1710915032929,-240.97814423,0.00030884,4]
[319669008,1710915032939,-2161.89445686,0.00030884,4]
[319669009,1710915032954,-1746.71383551,0.00030884,4]
[319669010,1710915032966,-342.45320169,0.00030886,4]
[319669011,1710915032975,-173.28243657,0.0003089,2]
[319669012,1710915032985,-10690.56668456,0.00030996,10]
[319669013,1710915032995,-187.61180098,0.00031,2]
[319669014,1710915033004,-1950.65175501,0.00031,2]
[319669015,1710915033014,-1059.5548496,0.00031012,2]
[319669016,1710915033026,-855.141573,0.00031022,2]
[319669017,1710915033036,-671.39462792,0.00032717,2]
[319669018,1710915033045,-166.666666,0.00032877,2]
[319669019,1710915033055,-1000.0,0.000329,2]
[319669020,1710915033066,-219.0050053,0.000329,2]
[319669021,1710915033075,-1393.44444585,0.000329,2]
[319669022,1710915033084,-702.6591049,0.00032947,35]
[319669023,1710915033094,-190.87886613,0.00032998,3]
[319669024,1710915033104,-155.298033,0.00032998,4]
[319669025,1710915033113,-180.36529286,0.00032998,4]
[319669026,1710915033122,-1958.74969652,0.00032998,4]
[319669027,1710915033131,-335.10109254,0.00032998,4]
[319669028,1710915033141,-808.79552476,0.00032998,4]
[319669029,1710915033151,-289.37743373,0.00032998,4]
[319669030,1710915033160,-640.74288565,0.00032998,4]
[319669031,1710915033170,-748.46350622,0.00032998,7]
[319669032,1710915033180,-1902.17878961,0.00032998,4]
[319669033,1710915033190,-241.6886044,0.00032998,4]
[319669034,1710915033199,-322.86949289,0.00032998,4]
[319669035,1710915033210,-155.12391835,0.00032998,4]
[319669036,1710915033219,-970.59345097,0.00032998,4]
[319669037,1710915033228,-155.54752154,0.00032998,4]
[319669038,1710915033238,-558.6632468,0.00032998,4]
[319669039,1710915033247,-159.85915058,0.00032998,4]
[319669040,1710915033256,-165.88617852,0.00032998,4]
[319669041,1710915033265,-427.51864849,0.00032998,4]
[319669042,1710915033274,-6390.75564771,0.00032998,4]
[319669043,1710915033284,-1177.40322805,0.00032998,4]
[319669044,1710915033293,-156.35481367,0.00032998,4]
[319669045,1710915033302,-1295.50775744,0.00032998,4]
[319669046,1710915033313,-900.91650034,0.00032998,4]
[319669047,1710915033322,-831.40042573,0.00032998,4]
[319669048,1710915033332,-267.65491813,0.00032998,4]
[319669049,1710915033342,-357.54414226,0.00032998,4]
[319669050,1710915033351,-155.52958619,0.00032998,4]
[319669051,1710915033361,-155.38433005,0.00032998,4]
[319669052,1710915033371,-314.94039187,0.00032998,4]
[319669053,1710915033380,-198.24110109,0.00032998,4]
[319669054,1710915033390,-367.6711612,0.00032998,2]
[319669055,1710915033400,-154.86062544,0.00032998,4]
[319669056,1710915033410,-956.65442395,0.00032998,4]
[319669058,1710915033420,-535.81137078,0.00032998,4]
[319669059,1710915033429,-191.97833043,0.00032998,4]
[319669060,1710915033438,-622.39924301,0.00032998,2]
[319669061,1710915033448,-178.76159257,0.00032998,4]
[319669062,1710915033459,-155.0807488,0.00032998,4]
[319669063,1710915033469,-229.01842609,0.00032998,4]
[319669064,1710915033479,-395.96365595,0.00032998,4]
[319669065,1710915033488,-404.69308339,0.00032998,4]
[319669066,1710915033497,-430.26757965,0.00032998,4]
[319669067,1710915033506,-158.52849293,0.00032998,4]
[319669068,1710915033516,-205.03177245,0.00032998,4]
[319669069,1710915033525,-293.46710233,0.00032998,4]
[319669070,1710915033536,-285.04802275,0.00032998,4]
[319669071,1710915033547,-253.48220235,0.00032998,4]
[319669072,1710915033557,-370.46797038,0.00032998,4]
[319669073,1710915033566,-930.05833365,0.00032998,4]
[319669074,1710915033575,-155.78641848,0.00032998,4]
[319669075,1710915033585,-276.46903258,0.00032998,4]
[319669076,1710915033594,-281.46310593,0.00032998,4]
[319669077,1710915033604,-469.55924245,0.00032998,4]
[319669078,1710915033613,-188.94915447,0.00032998,2]
[319669080,1710915033622,-511.81290043,0.00032998,4]
[319669081,1710915033632,-323.75701421,0.00032998,4]
[319669082,1710915033640,-1742.381481,0.00032998,120]
[319669083,1710915033650,-266.81659323,0.00032998,4]
[319669084,1710915033660,-1573.92732714,0.00032998,4]
[319669085,1710915033669,-174.33383685,0.00032998,7]
[319669086,1710915033681,-585.17794264,0.00032998,7]
[319669087,1710915033690,-5157.2146027,0.00032999,2]
[319669088,1710915033700,-64130.62294247,0.00032999,4]
[319669089,1710915033712,-142459.64098785,0.00033,7]
[319669168,1710915038901,-597.80075257,0.00030995,2]
[319669170,1710915038910,-16.76924743,0.00032997,7]
[319669886,1710915048104,-0.10885423,0.00032338,4]
[319669887,1710915048117,-687.33137992,0.00032338,4]
[319669888,1710915048126,-685.10434593,0.00032667,10]
[319669889,1710915048134,-483.23075257,0.00032997,7]
[319669890,1710915048143,-500.0,0.00032997,7]
[319669891,1710915048152,-500.0,0.00032997,7]
[319669892,1710915048162,-202.8793549,0.00032997,7]
[319669893,1710915048171,-500.0,0.00032997,7]
[319669894,1710915048180,-208.95440654,0.00032997,7]
[319669895,1710915115504,187.22672451,0.00030786,2]
[319669896,1710915162273,-828.95137549,0.00030785,4]
[319669897,1710915162302,-19879.58474885,0.00030786,4]
[319669898,1710915162337,-283.52744632,0.00030786,3]
[319669899,1710915162367,-1201.76006831,0.00031181,10]
[319669900,1710915162395,-1986.5479574,0.00031367,2]
[319669901,1710915162424,-193.202419,0.00031496,2]
[319669902,1710915162453,-13895.931663,0.00031931,2]
[319669903,1710915162480,-154.86062544,0.00031997,4]
[319669904,1710915162507,-405.91294278,0.00031998,4]
[319669905,1710915162533,-597.80075257,0.00031999,2]
[319669906,1710915162561,-204.113305,0.00032,30]
[319669907,1710915182179,-235.93981312,0.00032796,2]
[319669908,1710915182204,-247.76137318,0.00032897,2]
[319669909,1710915182230,-1149.53861493,0.00032897,2]
[319669910,1710915182255,-1000.0,0.000329,2]
[319669911,1710915182280,-154.86062544,0.00032961,4]
[319669912,1710915182305,-597.80075257,0.00032961,2]
[319669913,1710915182332,-154.86062544,0.00032961,4]
[319669914,1710915182357,-10690.56668456,0.00032961,10]
[319669915,1710915182382,-236.61031085,0.00032961,4]
[319669916,1710915182408,-250.79054684,0.00032962,7]
[319669917,1710915182432,-500.0,0.00032962,7]
[319669918,1710915182459,-500.0,0.00032962,7]
[319669919,1710915182483,-500.0,0.00032962,7]
[319669920,1710915182508,-500.0,0.00032962,7]
[319669921,1710915182533,-500.0,0.00032962,7]
[319669922,1710915182557,-500.0,0.00032962,7]
[319669923,1710915182582,-561.94103411,0.00032962,7]
[319669924,1710915182606,-500.0,0.00032962,7]
[319669925,1710915182630,-500.0,0.00032962,7]
[319669926,1710915182653,-49158.58024091,0.00032962,4]
[319669927,1710915183459,-3000000.0,0.00045376,60]
[319669928,1710915191317,-409.39334905,0.00032795,4]
[319669929,1710915191342,-197.52561491,0.00032961,4]
[319669930,1710915191369,-14972.04270156,0.00032962,4]
[319669931,1710915191396,-52860.28895643,0.00032963,2]
[319669932,1710915193732,-597.80075257,0.00032961,2]
[319669933,1710915193757,-154.86062544,0.00032961,4]
[319669934,1710915193783,-67686.58924394,0.00032963,2]
[319669935,1710915195463,-10690.56668456,0.00032928,10]
[319669936,1710915195492,-57748.68393739,0.00032963,2]
[319669937,1710915196954,-999.10080927,0.00032962,2]
[319669938,1710915196982,-39320.71348981,0.00032963,2]
[319669939,1710915197008,-942.51157625,0.00032981,2]
[319669940,1710915197034,-3148.79744482,0.00032997,4]
[319669941,1710915197059,-173.72677558,0.00032998,4]
[319669942,1710915197085,-623.26715161,0.00032998,4]
[319669943,1710915197109,-296.10767864,0.00032998,4]
[319669944,1710915197134,-857.97842039,0.00032999,4]
[319669945,1710915197159,-535.03649526,0.00032999,4]
[319669946,1710915197184,-21542.01078032,0.00033,7]
[319669947,1710915199958,-68439.25062195,0.00033,7]
[319669948,1710915202559,-68439.25062195,0.00033,7]
[319669949,1710915204995,-275.29876552,0.00032999,4]
[319669950,1710915205023,-68163.95185643,0.00033,7]
[319669951,1710915206733,-68439.25062195,0.00033,7]
[319669952,1710915208113,-60171.43558122,0.00033,7]
[319669953,1710915208138,-8267.81504073,0.00033,7]
[319669954,1710915209686,-68439.25062195,0.00033,7]
[319669955,1710915211949,-53409.13584134,0.00032999,2]
[319669956,1710915211973,-217.84220443,0.00032999,2]
[319669957,1710915211998,-154.86062544,0.00032999,4]
[319669958,1710915212023,-14657.41195074,0.00033,7]
[319669961,1710915247824,-3353.32105155,0.00032966,10]
[319669962,1710915247846,-519441.03834265,0.00033,7]
[319669963,1710915255404,646.67894845,0.00033,7]
[319670007,1710915776361,-154.84515485,0.00027871,2]
[319670008,1710915776382,-154.84515485,0.00027871,2]
[319670009,1710915776403,-400.0,0.00027871,2]
[319670010,1710915776424,-3149.88760535,0.00027871,2]
[319670011,1710915776444,-1618.00449362,0.00027871,2]
[319670012,1710915776463,-156.21736877,0.00027872,2]
[319670013,1710915776484,-154.84515485,0.00027872,2]
[319670014,1710915776505,-191.84776158,0.00027872,2]
[319670015,1710915776525,-331.89131947,0.00027872,2]
[319670016,1710915776547,-807.30445512,0.00027872,2]
[319670017,1710915776582,-154.84515485,0.00027872,2]
[319670018,1710915776613,-337.18867591,0.00027872,2]
[319670019,1710915776648,-154.84515485,0.00027873,2]
[319670020,1710915776678,-154.84515485,0.00027873,3]
[319670021,1710915776710,-1609.06716003,0.00027873,2]
[319670022,1710915776743,-3504.14814187,0.00027873,2]
[319670023,1710915776771,-186.99808186,0.00027873,2]
[319670024,1710915776802,-779.2579641,0.00027873,2]
[319670025,1710915776831,-275.34632078,0.00027873,2]
[319670026,1710915776866,-154.84515485,0.00027873,2]
[319670027,1710915776893,-154.84515485,0.00027873,2]
[319670028,1710915776924,-157.50519909,0.00027873,2]
[319670029,1710915776953,-366.62315762,0.00027874,2]
[319670030,1710915776981,-154.84515485,0.00027874,2]
[319670031,1710915777009,-205.03177245,0.00027874,2]
[319670032,1710915777039,-154.84515485,0.00027874,2]
[319670033,1710915777065,-154.84515485,0.00027874,2]
[319670034,1710915777092,-154.84515485,0.00027874,2]
[319670035,1710915777118,-783.57894867,0.00027875,2]
[319670036,1710915777144,-154.84515485,0.00027875,2]
[319670037,1710915777175,-154.84515485,0.00027875,2]
[319670038,1710915777202,-325.68369138,0.00027875,2]
[319670039,1710915777229,-154.84515485,0.00027875,2]
[319670040,1710915777257,-154.84515485,0.00027876,2]
[319670041,1710915777286,-2602.41354396,0.00027876,2]
[319670042,1710915777314,-539.22321355,0.00027876,2]
[319670043,1710915777342,-2602.41354396,0.00027876,2]
[319670044,1710915777371,-1476.73003936,0.00027876,2]
[319670045,1710915777399,-1919.09606837,0.00027876,2]
[319670046,1710915777426,-154.84515485,0.00027876,2]
[319670047,1710915777454,-683.2104041,0.00027876,2]
[319670048,1710915777481,-154.84515485,0.00027876,2]
[319670049,1710915777510,-2602.41354396,0.00027876,2]
[319670050,1710915777541,-154.84515485,0.00027876,2]
[319670051,1710915777568,-617.22297627,0.00027877,2]
[319670052,1710915777590,-154.84515485,0.00027877,2]
[319670053,1710915777752,-239.17077989,0.00027877,2]
[319670054,1710915777772,-154.84515485,0.00027877,2]
[319670055,1710915777793,-616.97666661,0.00027877,2]
[319670056,1710915777814,-154.84515485,0.00027877,2]
[319670057,1710915777835,-500.0,0.00027877,2]
[319670058,1710915777855,-578.73797894,0.00027877,2]
[319670059,1710915777877,-500.0,0.00027877,2]
[319670060,1710915777898,-197.54723284,0.00027877,2]
[319670061,1710915777918,-529.10455935,0.00027877,2]
[319670062,1710915777940,-4747.73470018,0.00027878,2]
[319670063,1710915777964,-13532.20365541,0.00027878,2]
[319670066,1710916002811,9976.79119269,0.00024889,10]
[319670068,1710916029142,-23.20880731,0.00024889,10]
[319670069,1710916029163,-216.79392391,0.00027062,2]
[319670070,1710916035874,-154.84515485,0.00024889,2]
[319670071,1710916035900,-148.65134866,0.00024889,2]
[319670072,1710916035971,-6.19380619,0.00024889,2]
[319670073,1710916045230,-154.84515485,0.00027059,2]
[319670074,1710916045250,-275.34632078,0.0002706,2]
[319670075,1710916045270,-783.57894867,0.0002706,2]
[319670076,1710916045289,-616.97666661,0.00027061,2]
[319670077,1710916045309,-760.51480736,0.00027061,2]
[319670078,1710916047773,-294.63250235,0.00024889,2]
[319670079,1710916048007,-6.01290821,0.00024889,2]
[319670080,1710916055567,-221.20641444,0.00024889,2]
[319670081,1710916055697,-4.51441662,0.00024889,2]
[319670083,1710916156593,-154.84515485,0.00026051,2]
[319670084,1710916156616,-205.03177245,0.00026051,2]
[319670085,1710916156637,-1618.00449362,0.00026051,2]
[319670086,1710916156660,-154.84515485,0.00026052,2]
[319670087,1710916156682,-331.89131947,0.00026052,2]
[319670088,1710916156706,-597.13322661,0.00026052,2]
[319670089,1710916156728,-1476.73003936,0.00026052,2]
[319670090,1710916156753,-154.84515485,0.00026052,2]
[319670091,1710916156775,-154.84515485,0.00026052,2]
[319670092,1710916156804,-617.22297627,0.00026053,2]
[319670093,1710916156827,-154.84515485,0.00026053,2]
[319670094,1710916156851,-239.17077989,0.00026054,2]
[319670095,1710916156874,-876.45467613,0.00026054,2]
[319670096,1710916156897,-683.2104041,0.00026055,2]
[319670097,1710916156920,-157.50519909,0.00026055,2]
[319670098,1710916156944,-3504.14814187,0.00026055,2]
[319670099,1710916156970,-156.21736877,0.00026055,2]
[319670100,1710916156993,-191.84776158,0.00026055,2]
[319670101,1710916157013,-779.2579641,0.00026056,2]
[319670102,1710916157037,-366.62315762,0.00026057,2]
[319670103,1710916157060,-154.84515485,0.00026058,2]
[319670104,1710916157081,-1919.09606837,0.00026058,2]
[319670105,1710916157100,-1374.6442278,0.00026059,2]
[319670106,1710916157122,-47731.50650433,0.00027054,2]
[319670107,1710916157142,-300.0,0.00027062,2]
[319670108,1710916157162,-539.22321355,0.00027064,2]
[319670109,1710916157183,-4747.73470018,0.00027064,2]
[319670110,1710916157205,-1445.82009998,0.00027065,10]
[319670111,1710916157226,-187.96964371,0.00027239,3]
[319670112,1710916157247,-14404.6850022,0.00027345,2]
[319670113,1710916157267,-265.87314,0.00027871,2]
[319670114,1710916157290,-202.1945166,0.00027885,2]
[319670115,1710916157310,-796.6616823,0.00027885,2]
[319670116,1710916157329,-783.57894867,0.00029039,2]
[319670117,1710916157350,-275.34632078,0.00029039,2]
[319670118,1710916157369,-706.11087428,0.0002904,2]
[319670119,1710916157391,-250.0,0.00029205,2]
[319670120,1710916157411,-24900.0,0.00029205,2]
[319670121,1710916157431,-227.50831913,0.00030107,4]
[319670122,1710916157451,-616.96680438,0.00030108,4]
[319670123,1710916157471,-535.66659725,0.00030108,2]
[319670124,1710916157493,-133647.80221005,0.00030109,2]
[319670125,1710916172560,-154.84515485,0.0002605,2]
[319670126,1710916172581,-180.760193,0.00029291,2]
[319670127,1710916172603,-2000.0,0.00029563,2]
[319670128,1710916172626,-295.20542759,0.00030107,4]
[319670129,1710916172647,-306.46186004,0.00030107,4]
[319670130,1710916172669,-802.29032366,0.00030107,4]
[319670131,1710916172691,-410.19112987,0.00030107,2]
[319670132,1710916172713,-154.84515485,0.00030107,4]
[319670133,1710916172733,-369.94707207,0.00030107,4]
[319670134,1710916172755,-1421.66051345,0.00030107,2]
[319670135,1710916172774,-156.47548974,0.00030107,4]
[319670136,1710916172797,-159.16965075,0.00030107,4]
[319670137,1710916172816,-288.53537646,0.00030107,4]
[319670138,1710916172837,-251.87671276,0.00030107,4]
[319670139,1710916172856,-1177.57825968,0.00030108,4]
[319670140,1710916172876,-829.28230976,0.00030108,4]
[319670141,1710916172896,-205.03177245,0.00030108,4]
[319670142,1710916172920,-25319.50410584,0.00030108,4]
[319670143,1710916172942,-7662.11499151,0.00030109,2]
[319670253,1710916232669,-250.0,0.0002997,2]
[319670255,1710916232678,-301.0400804,0.00030077,4]
[319670257,1710916232688,-209.88897915,0.00030107,4]
[319670259,1710916232697,-1133.35530672,0.00030107,4]
[319670261,1710916232710,-641.26315399,0.00030107,4]
[319670263,1710916232719,-575.00945421,0.00030107,4]
[319670265,1710916232728,-6378.9141845,0.00030107,4]
[319670267,1710916232738,-2865.73307262,0.00030107,4]
[319670269,1710916232749,-1338.48568094,0.00030107,4]
[319670271,1710916232759,-321.3426985,0.00030107,4]
[319670273,1710916232768,-171.91618237,0.00030107,4]
[319670275,1710916232779,-917.94104197,0.00030107,4]
[319670277,1710916232788,-278.37814572,0.00030107,4]
[319670279,1710916232797,-161.05769215,0.00030107,4]
[319670281,1710916232807,-154.84515485,0.00030107,4]
[319670283,1710916232816,-168.02542953,0.00030107,4]
[319670284,1710916232825,-2345.26199115,0.00030108,4]
[319670286,1710916232835,-196.45022006,0.00030108,4]
[319670287,1710916232844,-450729.56262926,0.00030109,2]
[319670289,1710916232856,-9467.84992561,0.0003011,2]
[319670291,1710916232865,-578.87,0.00030136,2]
[319670292,1710916232875,-578.87,0.00030191,2]
[319670294,1710916232884,-578.87,0.00030246,2]
[319670296,1710916232894,-578.87,0.00030301,2]
[319670298,1710916232903,-578.87,0.00030356,2]
[319670300,1710916232913,-578.87,0.0003041,2]
[319670302,1710916232923,-578.87,0.00030465,2]
[319670304,1710916232934,-624.30554371,0.00030492,2]
[319670306,1710916232943,-578.87,0.0003052,2]
[319670308,1710916232952,-578.87,0.00030575,2]
[319670310,1710916232962,-578.87,0.0003063,2]
[319670312,1710916232971,-578.87,0.00030684,2]
[319670314,1710916232980,-578.87,0.00030739,2]
[319670316,1710916232990,-424.13306904,0.0003079,2]
[319670318,1710916232999,-1254.10000122,0.0003079,2]
[319670320,1710916233009,-578.87,0.00030794,2]
[319670322,1710916233018,-578.87,0.00030849,2]
[319670324,1710916233027,-10690.56668456,0.0003089,10]
[319670326,1710916233037,-578.87,0.00030904,2]
[319670328,1710916233046,-578.87,0.00030958,2]
[319670330,1710916233055,-578.87,0.00031013,2]
[319670332,1710916233064,-578.87,0.00031068,2]
[319670334,1710916233074,-424.13306902,0.00031072,2]
[319670343,1710916233158,-578.87,0.00031123,2]
[319670346,1710916233167,-578.87,0.00031178,2]
[319670348,1710916233177,-578.87,0.00031232,2]
[319670350,1710916233186,-578.87,0.00031287,2]
[319670352,1710916233196,-578.87,0.00031342,2]
[319670354,1710916233206,-424.13306902,0.00031354,2]
[319670356,1710916233216,-579.02905061,0.00031397,2]
[319670358,1710916233225,-424.13306902,0.00031635,2]
[319670360,1710916233235,-1254.10000118,0.00031872,2]
[319670362,1710916233244,-187.22672451,0.000319,2]
[319670364,1710916233253,-424.13306902,0.00031917,2]
[319670366,1710916233262,-5918.9004683,0.00032,30]
[319670368,1710916233271,-17761.49876975,0.00032,30]
[319670370,1710916233280,-620.21527719,0.00032017,2]
[319670372,1710916233290,-2000.0,0.00032029,2]
[319670373,1710916233299,-518.82820176,0.00032732,2]
[319670375,1710916233308,-1000.0,0.00032763,2]
[319670377,1710916233318,-11668.71016017,0.00032796,2]
[319670379,1710916233327,-1000.07544382,0.00032804,2]
[319670380,1710916233338,-166.666666,0.00032877,2]
[319670381,1710916233347,-1254.10000118,0.00032954,2]
[319670382,1710916233359,-270.59901967,0.00032998,4]
[319670383,1710916233368,-205.9833027,0.00032998,4]
[319670384,1710916233377,-225.03178758,0.00033,2]
[319670385,1710916233387,-155.0954642,0.00033,4]
[319670386,1710916233397,-226.27106147,0.00033,4]
[319670387,1710916233407,-155.42308128,0.00033,2]
[319670388,1710916233416,-2000.0,0.00033,2]
[319670389,1710916233425,-2000.0,0.00033,2]
[319670390,1710916233434,-2000.0,0.0003301,2]
[319670391,1710916233443,-2000.0,0.0003301,2]
[319670392,1710916233452,-2000.0,0.0003302,2]